bitfinex/quotes_SOLUSD_20250903
["timestamp","ask_amount","ask_price","bid_price","bid_amount"]
[1756879476554,20.0,208.81,208.78,0.09]
[1756879476733,4.49419676,208.81,208.72,26.0]
[1756879476922,15.50580324,208.81,208.79,0.09]
[1756879477356,15.50580324,208.81,208.72,13.87991715]
[1756879477671,29.38572039,208.83,208.78,0.09]
[1756879477828,15.50580324,208.81,208.78,0.09]
[1756879478729,18.14810154,208.81,208.76,0.19]
[1756879478925,18.14810154,208.81,208.77,0.09]
[1756879479124,18.14810154,208.81,208.76,0.1]
[1756879479338,16.20580324,208.81,208.76,0.1]
[1756879479556,18.14810154,208.81,208.76,0.19]
[1756879479768,0.7,208.83,208.78,2.6422983]
[1756879479941,18.14810154,208.84,208.79,0.09]
[1756879480133,3.52182883,208.83,208.8,0.09]
[1756879480458,41.74,208.87,208.76,105.8]
[1756879480459,41.82,208.89,208.82,2.6422983]
[1756879480663,21.43186269,208.88,208.83,2.7322983]
[1756879480829,3.52116913,208.87,208.83,2.7322983]
[1756879481027,2.6422983,208.86,208.8,0.09]
[1756879481250,2.6422983,208.84,208.78,0.09]
[1756879481431,2.6422983,208.84,208.78,2.7322983]
[1756879481635,18.14810154,208.85,208.79,2.7322983]
[1756879482025,18.14810154,208.85,208.79,0.09]
[1756879482232,18.14810154,208.85,208.79,2.7322983]
[1756879482748,15.50580324,208.89,208.84,2.6422983]
[1756879482940,3.52227168,208.88,208.84,2.6422983]
[1756879483141,2.6422983,208.86,208.78,0.09]
[1756879483383,2.6422983,208.85,208.79,2.6422983]
[1756879483656,0.72,208.86,208.78,26.0]
[1756879483854,15.50580324,208.87,208.82,2.6422983]
[1756879484228,15.50580324,208.87,208.83,4.78858401]
[1756879484445,16.22580324,208.87,208.83,4.78858401]
[1756879484655,15.50580324,208.87,208.83,4.78858401]
[1756879484860,2.6422983,208.84,208.83,4.78858401]
[1756879485067,0.72,208.84,208.83,4.78858401]
[1756879485442,18.14810154,208.85,208.83,4.78858401]
[1756879485637,18.86810154,208.85,208.83,4.78858401]
[1756879486264,18.86810154,208.85,208.8,4.78927203]
[1756879486572,18.86810154,208.85,208.76,0.1]
[1756879486573,15.50580324,208.8,208.76,4.88997795]
[1756879486874,15.50580324,208.82,208.77,2.7322983]
[1756879487043,16.22580324,208.84,208.79,2.6422983]
[1756879487242,14.39366679,208.83,208.81,2.6422983]
[1756879487482,15.50580324,208.88,208.82,2.7322983]
[1756879487649,3.5222459,208.87,208.82,0.09]
[1756879487849,15.50580324,208.88,208.84,2.6422983]
[1756879488401,15.50580324,208.88,208.85,4.78812544]
[1756879488563,0.72,208.87,208.85,4.78812544]
[1756879488770,15.50580324,208.88,208.85,4.78812544]
[1756879489777,15.50580324,208.88,208.85,4.81812544]
[1756879490258,15.50580324,208.88,208.85,7.46042374]
[1756879491255,15.50580324,208.88,208.85,0.03]
[1756879491580,18.14810154,208.86,208.85,0.03]
[1756879491783,15.50580324,208.86,208.85,0.03]
[1756879491955,18.86810154,208.86,208.85,0.03]
[1756879492771,15.50580324,208.86,208.85,0.03]
[1756879492955,16.22580324,208.88,208.85,0.03]
[1756879493359,15.50580324,208.88,208.85,0.03]
[1756879493660,16.22580324,208.88,208.85,0.03]
[1756879493858,0.72,208.87,208.85,0.03]
[1756879494051,0.72,208.87,208.82,0.03]
[1756879494253,15.50580324,208.84,208.82,4.8187624]
[1756879494479,0.72,208.83,208.82,4.8187624]
[1756879494686,3.3622983,208.83,208.82,4.8187624]
[1756879494862,8.1810607,208.83,208.82,4.8187624]
[1756879495186,5.5387624,208.83,208.82,4.8187624]
[1756879495491,15.50580324,208.84,208.82,4.8187624]
[1756879495670,0.72,208.83,208.82,4.8187624]
[1756879496260,0.72,208.83,208.82,0.03]
[1756879498362,3.3622983,208.83,208.82,0.03]
[1756879499549,0.72,208.83,208.82,0.03]
[1756879499753,3.3622983,208.83,208.82,0.03]
[1756879499963,15.50580324,208.65,208.63,0.67]
[1756879500169,15.50580324,208.65,208.64,0.67]
[1756879500558,29.90845332,208.65,208.64,0.67]
[1756879500766,29.90845332,208.65,208.55,3.86893493]
[1756879500767,2.6422983,208.6,208.55,4.79501318]
[1756879500966,17.64810154,208.58,208.55,4.79501318]
[1756879501154,2.6422983,208.56,208.55,4.79501318]
[1756879501355,17.64810154,208.56,208.47,19.43128472]
[1756879501554,2.6422983,208.55,208.5,26.0]
[1756879501754,2.6422983,208.55,208.47,16.78898642]
[1756879501755,2.6422983,208.53,208.47,16.78898642]
[1756879501974,0.72,208.67,208.47,16.28898642]
[1756879502291,4.23126139,208.66,208.48,44.78]
[1756879502497,2.6422983,208.66,208.59,2.6422983]
[1756879502658,1.34,208.69,208.57,0.67]
[1756879502659,2.6422983,208.64,208.57,0.67]
[1756879502858,0.62,208.69,208.56,26.0]
[1756879502859,15.12680001,208.63,208.56,26.0]
[1756879503172,2.6422983,208.63,208.57,0.67]
[1756879503395,0.72,208.62,208.54,19.4256492]
[1756879503565,2.6422983,208.61,208.55,0.67]
[1756879503756,2.6422983,208.6,208.54,16.7833509]
[1756879503960,26.72,208.62,208.54,17.4533509]
[1756879504287,2.6422983,208.63,208.55,0.67]
[1756879504494,2.6422983,208.63,208.56,2.6422983]
[1756879504659,0.72,208.64,208.56,2.6422983]
[1756879504860,3.3622983,208.64,208.57,3.3122983]
[1756879505083,2.6422983,208.63,208.57,0.67]
[1756879505274,0.72,208.64,208.55,13.87991715]
[1756879505584,4.86203701,208.64,208.56,16.78174145]
[1756879505784,0.72,208.63,208.56,16.78174145]
[1756879506079,0.72,208.63,208.58,4.14203701]
[1756879506582,0.72,208.63,208.59,4.14203701]
[1756879507584,14.40472475,208.67,208.62,4.14203701]
[1756879507880,46.04,208.72,208.63,0.67]
[1756879508098,46.04,208.72,208.68,4.14203701]
[1756879508270,45.38,208.73,208.68,4.14203701]
[1756879508460,46.08,208.76,208.72,4.14203701]
[1756879508659,0.72,208.76,208.72,4.14203701]
[1756879508861,0.72,208.76,208.69,0.67]
[1756879508862,0.72,208.76,208.73,4.14203701]
[1756879509088,18.53984854,208.79,208.69,0.67]
[1756879509089,0.72,208.79,208.74,4.14203701]
[1756879509269,45.38,208.78,208.74,4.14203701]
[1756879509582,10.24106426,208.8,208.75,4.79041916]
[1756879509786,0.72,208.77,208.75,4.79041916]
[1756879510697,13.59559401,208.75,208.49,0.03]
[1756879510990,26.0,208.7,208.57,13.59559401]
[1756879511178,10.96106426,208.69,208.63,10.24106426]
[1756879511484,26.0,208.66,208.65,4.79271507]
[1756879511970,26.0,208.65,208.6,4.79365741]
[1756879512169,10.24106426,208.64,208.6,4.79365741]
[1756879512379,10.90106426,208.64,208.6,4.79365741]
[1756879512981,10.90106426,208.64,208.59,4.79409367]
[1756879513567,0.66,208.68,208.61,10.24106426]
[1756879513775,10.24106426,208.67,208.61,10.24106426]
[1756879514088,10.24106426,208.67,208.6,10.94106426]
[1756879514468,46.14,208.71,208.64,36.24106426]
[1756879514794,10.24106426,208.72,208.66,10.24106426]
[1756879514982,26.0,208.64,208.56,0.7]
[1756879515181,26.0,208.64,208.51,0.03]
[1756879515182,26.0,208.6,208.51,0.03]
[1756879515394,26.0,208.62,208.58,10.24106426]
[1756879515695,26.66,208.63,208.56,10.24106426]
[1756879515891,10.24106426,208.66,208.6,10.24106426]
[1756879516097,10.24106426,208.66,208.59,10.94106426]
[1756879516302,0.66,208.67,208.59,10.94106426]
[1756879516303,0.66,208.67,208.6,10.24106426]
[1756879516474,10.90106426,208.67,208.6,10.24106426]
[1756879516792,26.0,208.69,208.6,10.24106426]
[1756879517103,10.24106426,208.7,208.64,16.77530674]
[1756879517769,10.24106426,208.69,208.64,16.77530674]
[1756879517973,10.24106426,208.69,208.64,17.47530674]
[1756879518175,36.90106426,208.71,208.64,27.716371]
[1756879518389,10.24106426,208.74,208.67,10.24106426]
[1756879518585,10.24106426,208.74,208.67,10.94106426]
[1756879518796,10.24106426,208.71,208.64,17.47530674]
[1756879518976,10.24106426,208.71,208.64,27.716371]
[1756879519307,26.0,208.73,208.54,0.03]
[1756879519308,26.0,208.62,208.54,0.03]
[1756879519605,36.24106426,208.59,208.54,4.8252092]
[1756879520094,36.90106426,208.59,208.54,4.8252092]
[1756879520310,26.0,208.55,208.54,4.8252092]
[1756879520482,10.24106426,208.55,208.54,0.03]
[1756879521904,0.66,208.64,208.54,0.73]
[1756879522202,10.24106426,208.59,208.54,0.73]
[1756879522397,10.24106426,208.64,208.54,0.03]
[1756879522594,10.24106426,208.56,208.54,0.03]
[1756879522976,0.66,208.6,208.54,0.03]
[1756879523179,10.24106426,208.56,208.54,0.03]
[1756879523879,36.24106426,208.59,208.54,0.73]
[1756879524297,10.24106426,208.58,208.54,0.73]
[1756879524497,10.24106426,208.58,208.54,0.03]
[1756879525782,0.66,208.57,208.54,0.03]
[1756879525983,10.90106426,208.57,208.54,0.03]
[1756879526608,10.24106426,208.55,208.54,0.03]
[1756879526821,36.24106426,208.55,208.51,0.03]
[1756879527113,36.24106426,208.55,208.32,24.00110046]
[1756879527114,26.0,208.47,208.37,0.7]
[1756879527280,10.24106426,208.41,208.36,4.79938567]
[1756879527477,74.64,208.47,208.36,4.79938567]
[1756879527478,0.66,208.46,208.36,4.79938567]
[1756879527682,10.24106426,208.42,208.36,15.04044993]
[1756879527901,0.66,208.46,208.36,16.79784986]
[1756879528074,10.24106426,208.42,208.36,16.79784986]
[1756879528276,10.24106426,208.41,208.36,11.99846419]
[1756879528712,10.24106426,208.42,208.37,0.7]
[1756879528883,10.24106426,208.41,208.36,11.99846419]
[1756879529083,10.24106426,208.41,208.36,12.69846419]
[1756879529579,26.0,208.49,208.36,11.99846419]
[1756879529800,10.24106426,208.41,208.38,4.79892504]
[1756879530423,10.24106426,208.43,208.39,0.7]
[1756879530816,74.74,208.46,208.38,4.79892504]
[1756879530817,0.66,208.52,208.42,10.24106426]
[1756879531121,10.24106426,208.48,208.41,10.24106426]
[1756879531430,10.24106426,208.46,208.4,10.94106426]
[1756879531606,10.24106426,208.46,208.4,0.7]
[1756879531793,10.24106426,208.46,208.4,10.94106426]
[1756879531998,10.24106426,208.47,208.41,4.79823424]
[1756879532197,10.24106426,208.46,208.41,4.79823424]
[1756879532393,10.90106426,208.46,208.41,4.79823424]
[1756879532620,10.24106426,208.45,208.41,4.79823424]
[1756879532819,10.24106426,208.44,208.41,4.79823424]
[1756879533006,0.66,208.43,208.41,4.79823424]
[1756879533210,0.66,208.43,208.39,4.79850058]
[1756879533438,10.24106426,208.45,208.39,15.03956484]
[1756879533810,0.66,208.44,208.39,4.79850058]
[1756879534404,0.66,208.43,208.38,10.24106426]
[1756879534618,26.0,208.44,208.39,10.24106426]
[1756879534923,26.0,208.44,208.32,0.28432314]
[1756879534924,0.66,208.43,208.28,10.24106426]
[1756879535126,36.24106426,208.36,208.29,10.24106426]
[1756879535328,36.24106426,208.36,208.28,0.7]
[1756879535512,26.0,208.36,208.29,10.24106426]
[1756879535822,15.03768743,208.48,208.28,0.7]
[1756879535823,10.90106426,208.42,208.35,10.24106426]
[1756879536022,10.90106426,208.42,208.34,10.24106426]
[1756879536229,10.24106426,208.43,208.36,10.24106426]
[1756879536415,10.24106426,208.44,208.36,10.24106426]
[1756879536617,0.66,208.45,208.37,10.24106426]
[1756879536805,10.24106426,208.44,208.35,0.7]
[1756879537430,10.24106426,208.44,208.37,10.24106426]
[1756879537720,10.24106426,208.47,208.4,10.24106426]
[1756879538124,10.24106426,208.47,208.41,4.79823424]
[1756879538325,0.66,208.48,208.42,10.24106426]
[1756879538526,0.66,208.51,208.44,10.24106426]
[1756879538742,0.66,208.51,208.45,10.24106426]
[1756879539404,48.4,208.56,208.42,0.7]
[1756879539607,10.24106426,208.53,208.46,10.24106426]
[1756879539809,10.90106426,208.54,208.47,10.24106426]
[1756879540203,10.90106426,208.54,208.48,4.79662317]
[1756879540604,10.90106426,208.54,208.48,15.03768743]
[1756879540816,0.66,208.54,208.48,15.03768743]
[1756879541615,0.66,208.54,208.49,10.24106426]
[1756879541809,0.66,208.57,208.51,10.24106426]
[1756879542229,0.66,208.57,208.52,15.03676731]
[1756879542429,10.24106426,208.6,208.54,10.24106426]
[1756879542740,10.24106426,208.6,208.53,10.24106426]
[1756879542914,10.24106426,208.59,208.53,10.24106426]
[1756879543506,26.0,208.5,208.38,0.69]
[1756879543709,26.0,208.48,208.37,4.79915534]
[1756879543926,10.24106426,208.43,208.37,15.0402196]
[1756879544333,10.24106426,208.41,208.37,11.99788837]
[1756879544522,10.24106426,208.42,208.37,11.99788837]
[1756879545334,10.24106426,208.41,208.37,11.99788837]
[1756879545714,10.24106426,208.4,208.37,11.99788837]
[1756879547415,0.66,208.44,208.37,11.99788837]
[1756879547604,10.24106426,208.4,208.37,11.99788837]
[1756879550117,10.24106426,208.41,208.38,0.69]
[1756879550430,10.24106426,208.41,208.37,11.99788837]
[1756879550644,10.24106426,208.41,208.37,12.68788837]
[1756879551315,10.24106426,208.42,208.37,17.48704371]
[1756879553340,10.24106426,208.41,208.37,17.48704371]
[1756879553537,0.06,208.45,208.37,41.48282045]
[1756879553728,10.24106426,208.42,208.37,41.48282045]
[1756879553913,0.06,208.45,208.41,10.24106426]
[1756879554112,0.66,208.51,208.43,10.24106426]
[1756879554331,10.24106426,208.5,208.44,10.24106426]
[1756879554838,10.24106426,208.53,208.46,10.24106426]
[1756879555033,0.66,208.56,208.41,26.0]
[1756879555034,10.24106426,208.54,208.48,10.24106426]
[1756879555538,10.24106426,208.55,208.49,10.24106426]
[1756879556645,10.90106426,208.56,208.5,27.02763499]
[1756879556831,0.66,208.56,208.52,10.24106426]
[1756879557029,10.24106426,208.58,208.52,10.24106426]
[1756879557234,26.66,208.59,208.52,10.24106426]
[1756879557432,10.24106426,208.58,208.52,10.24106426]
[1756879557623,10.24106426,208.55,208.5,4.79616306]
[1756879557824,0.66,208.6,208.51,0.69]
[1756879558020,10.24106426,208.57,208.51,10.93106426]
[1756879558258,10.24106426,208.57,208.51,0.69]
[1756879558547,10.24106426,208.57,208.51,10.93106426]
[1756879558727,10.24106426,208.57,208.52,16.78496067]
[1756879558922,10.90106426,208.58,208.52,16.78496067]
[1756879559122,10.24106426,208.58,208.52,16.78496067]
[1756879559336,26.66,208.59,208.52,16.78496067]
[1756879559535,10.24106426,208.58,208.52,16.78496067]
[1756879559735,10.24106426,208.58,208.52,27.02602493]
[1756879559935,26.66,208.59,208.52,27.02602493]
[1756879560222,133.4,208.73,208.54,10.24106426]
[1756879560424,133.4,208.73,208.56,10.24106426]
[1756879560425,10.90106426,208.63,208.56,10.24106426]
[1756879560640,0.66,208.62,208.54,10.24106426]
[1756879560853,0.66,208.61,208.56,10.24106426]
[1756879561155,10.90106426,208.63,208.57,10.24106426]
[1756879561522,0.66,208.66,208.58,10.24106426]
[1756879561744,10.24106426,208.64,208.59,16.77932786]
[1756879561940,10.24106426,208.61,208.59,16.77932786]
[1756879562122,0.66,208.6,208.59,16.77932786]
[1756879562522,0.66,208.6,208.5,4.79616306]
[1756879562523,10.90106426,208.6,208.5,4.79616306]
[1756879562747,0.66,208.59,208.51,11.98928565]
[1756879562929,10.24106426,208.56,208.51,11.98928565]
[1756879563327,0.66,208.55,208.51,11.98928565]
[1756879563538,10.90106426,208.54,208.51,11.98928565]
[1756879564127,10.24106426,208.53,208.51,11.98928565]
[1756879565159,10.90106426,208.54,208.51,11.98928565]
[1756879565327,72.44,208.62,208.51,11.98928565]
[1756879565656,10.24106426,208.55,208.51,11.98928565]
[1756879566038,10.24106426,208.56,208.51,11.98928565]
[1756879566344,10.24106426,208.55,208.51,11.98928565]
[1756879566526,10.90106426,208.55,208.51,11.98928565]
[1756879567546,7.69466249,208.55,208.51,11.98928565]
[1756879568442,0.66,208.54,208.51,11.98928565]
[1756879569256,7.03466249,208.55,208.51,11.98928565]
[1756879569658,7.69466249,208.55,208.51,11.98928565]
[1756879569859,7.03466249,208.54,208.51,11.98928565]
[1756879570745,7.69466249,208.54,208.51,11.98928565]
[1756879570961,7.03466249,208.54,208.51,11.98928565]
[1756879571457,7.69466249,208.56,208.51,11.98928565]
[1756879572241,0.66,208.56,208.51,11.98928565]
[1756879572565,7.03466249,208.55,208.51,11.98928565]
[1756879573064,0.06,208.58,208.51,11.98928565]
[1756879573360,7.03466249,208.57,208.51,12.67928565]
[1756879573567,0.06,208.58,208.51,12.67928565]
[1756879573741,7.09466249,208.58,208.51,19.71394814]
[1756879574761,0.06,208.58,208.51,41.45488393]
[1756879574963,7.03466249,208.57,208.51,41.45488393]
[1756879575262,7.09466249,208.58,208.52,7.03466249]
[1756879575635,7.09466249,208.58,208.51,41.45488393]
[1756879575835,7.75466249,208.59,208.52,7.03466249]
[1756879576035,7.03466249,208.59,208.53,7.03466249]
[1756879576261,7.03466249,208.59,208.53,7.72466249]
[1756879576668,0.72,208.61,208.54,47.79422898]
[1756879576853,7.75466249,208.61,208.54,48.48422898]
[1756879577666,0.72,208.61,208.54,17.4733509]
[1756879577844,7.03466249,208.57,208.54,16.7833509]
[1756879578044,7.75466249,208.57,208.54,16.7833509]
[1756879578239,0.72,208.57,208.54,16.7833509]
[1756879579065,7.03466249,208.6,208.54,11.98810779]
[1756879579250,0.72,208.59,208.54,11.98810779]
[1756879579453,7.03466249,208.6,208.54,12.67810779]
[1756879580461,0.72,208.61,208.54,12.67810779]
[1756879580647,7.03466249,208.62,208.55,0.69]
[1756879581075,7.03466249,208.62,208.56,16.78174145]
[1756879581271,0.72,208.64,208.56,40.75565782]
[1756879581441,0.72,208.64,208.56,41.44565782]
[1756879581442,7.03466249,208.63,208.56,41.44565782]
[1756879581871,7.03466249,208.63,208.56,4.79478327]
[1756879581872,0.72,208.62,208.56,4.79478327]
[1756879582057,7.03466249,208.58,208.56,4.79478327]
[1756879582253,7.75466249,208.58,208.56,4.79478327]
[1756879582774,7.03466249,208.57,208.56,4.79478327]
[1756879582984,7.75466249,208.57,208.56,4.79478327]
[1756879583275,7.75466249,208.57,208.52,16.78447767]
[1756879583580,7.75466249,208.57,208.52,17.47447767]
[1756879583783,7.03466249,208.54,208.52,4.79570305]
[1756879583983,7.03466249,208.54,208.46,0.69]
[1756879583984,0.72,208.53,208.48,4.79662317]
[1756879584771,7.03466249,208.52,208.48,4.79662317]
[1756879585063,7.03466249,208.52,208.47,4.79685326]
[1756879585269,7.03466249,208.52,208.47,17.47898642]
[1756879585465,7.03466249,208.52,208.47,16.78898642]
[1756879585657,7.03466249,208.5,208.47,16.78898642]
[1756879585869,44.98,208.57,208.45,0.03]
[1756879585870,7.03466249,208.48,208.46,4.7970579]
[1756879586046,7.03466249,208.47,208.46,4.7970579]
[1756879586248,7.03466249,208.47,208.45,0.03]
[1756879586966,7.03466249,208.47,208.45,4.82723163]
[1756879587173,7.03466249,208.47,208.45,0.03]
[1756879587374,7.75466249,208.46,208.45,0.03]
[1756879587865,0.72,208.46,208.45,0.03]
[1756879588171,7.03466249,208.46,208.45,0.03]
[1756879588347,7.75466249,208.46,208.45,0.03]
[1756879589573,52.45466249,208.46,208.45,0.03]
[1756879590747,97.09166301,208.46,208.45,0.03]
[1756879590971,39.87991715,208.43,208.42,0.03]
[1756879591176,46.91457964,208.43,208.42,0.03]
[1756879591474,47.63457964,208.43,208.42,0.03]
[1756879593250,0.72,208.43,208.33,0.69]
[1756879593558,7.03466249,208.38,208.33,0.69]
[1756879593875,7.03466249,208.4,208.35,4.79961603]
[1756879594076,7.03466249,208.4,208.35,5.48961603]
[1756879594275,44.42,208.42,208.36,0.69]
[1756879594656,7.03466249,208.41,208.36,0.69]
[1756879594852,7.03466249,208.39,208.35,4.79961603]
[1756879595059,7.03466249,208.39,208.35,5.48961603]
[1756879595588,7.03466249,208.4,208.35,4.79961603]
[1756879595882,7.03466249,208.4,208.37,4.79915534]
[1756879596488,7.03466249,208.4,208.37,5.48915534]
[1756879596984,7.03466249,208.4,208.37,4.79915534]
[1756879598177,7.03466249,208.41,208.37,0.69]
[1756879599186,70.18,208.46,208.35,7.03466249]
[1756879599389,7.03466249,208.41,208.35,7.03466249]
[1756879599599,7.03466249,208.41,208.35,7.72466249]
[1756879599889,7.03466249,208.4,208.35,0.69]
[1756879600053,7.03466249,208.37,208.33,4.8000768]
[1756879600457,26.0,208.43,208.29,4.8009986]
[1756879600458,7.03466249,208.34,208.29,4.8009986]
[1756879600659,7.03466249,208.31,208.29,4.8009986]
[1756879601091,7.03466249,208.32,208.29,4.8009986]
[1756879601679,7.03466249,208.32,208.27,4.80145964]
[1756879601986,7.03466249,208.32,208.27,17.51510874]
[1756879602285,0.28432314,208.39,208.08,4.803]
[1756879602286,7.03466249,208.28,208.21,0.71]
[1756879602581,7.03466249,208.26,208.21,0.71]
[1756879602991,7.03466249,208.27,208.21,0.71]
[1756879603159,0.66,208.35,208.26,7.03466249]
[1756879603362,0.66,208.35,208.22,13.59559401]
[1756879603363,7.69466249,208.35,208.29,7.03466249]
[1756879603570,7.03466249,208.35,208.3,16.80268842]
[1756879603771,7.03466249,208.35,208.31,0.71]
[1756879604156,7.03466249,208.35,208.3,16.80268842]
[1756879604592,7.03466249,208.35,208.31,0.71]
[1756879604990,7.03466249,208.35,208.3,16.80268842]
[1756879605209,7.03466249,208.38,208.31,7.74466249]
[1756879605391,0.66,208.41,208.32,7.74466249]
[1756879605773,7.03466249,208.4,208.33,23.83493129]
[1756879605978,7.03466249,208.39,208.33,23.83493129]
[1756879606185,7.03466249,208.4,208.34,7.03466249]
[1756879606596,43.74,208.44,208.37,7.03466249]
[1756879606772,7.69466249,208.44,208.37,0.71]
[1756879607085,7.69466249,208.44,208.38,7.03466249]
[1756879607274,7.03466249,208.44,208.38,7.03466249]
[1756879607474,19.2167859,208.54,208.38,7.03466249]
[1756879607475,7.69466249,208.47,208.41,7.03466249]
[1756879607699,7.69466249,208.47,208.42,4.79800403]
[1756879607881,44.36,208.49,208.42,5.50800403]
[1756879608078,7.03466249,208.48,208.42,23.82767659]
[1756879609400,51.39466249,208.49,208.43,7.74466249]
[1756879609599,51.39466249,208.49,208.43,0.71]
[1756879609898,51.39466249,208.49,208.43,7.74466249]
[1756879610098,43.7,208.49,208.45,7.03466249]
[1756879610302,7.03466249,208.5,208.45,7.03466249]
[1756879610601,7.03466249,208.5,208.44,5.50754365]
[1756879610898,7.03466249,208.5,208.44,12.54220614]
[1756879611095,7.03466249,208.5,208.44,5.50754365]
[1756879611278,7.03466249,208.5,208.44,12.54220614]
[1756879611681,0.66,208.52,208.45,0.71]
[1756879611893,7.69466249,208.52,208.45,7.74466249]
[1756879612097,0.66,208.52,208.46,16.7897918]
[1756879612302,0.66,208.52,208.47,7.03466249]
[1756879612695,0.66,208.52,208.47,7.74466249]
[1756879613699,7.03466249,208.53,208.47,7.74466249]
[1756879614087,7.03466249,208.53,208.48,4.79662317]
[1756879614296,51.23466249,208.54,208.48,11.83128566]
[1756879614805,57.68,208.57,208.48,11.83128566]
[1756879614806,7.03466249,208.57,208.51,7.03466249]
[1756879615899,0.72,208.58,208.48,16.78818111]
[1756879615900,7.03466249,208.52,208.48,4.79662317]
[1756879616403,7.03466249,208.52,208.47,4.79685326]
[1756879616904,7.03466249,208.52,208.47,5.50685326]
[1756879617104,7.03466249,208.53,208.47,12.54151575]
[1756879618006,7.03466249,208.57,208.51,7.03466249]
[1756879618390,7.03466249,208.55,208.5,7.03466249]
[1756879618591,7.69466249,208.55,208.5,7.03466249]
[1756879618998,0.66,208.55,208.5,7.74466249]
[1756879619801,7.03466249,208.56,208.51,7.03466249]
[1756879620002,7.03466249,208.56,208.52,4.79570305]
[1756879620390,0.72,208.58,208.52,4.79570305]
[1756879620589,0.06,208.58,208.55,7.03466249]
[1756879621006,0.06,208.58,208.53,0.71]
[1756879621214,0.06,208.58,208.55,7.03466249]
[1756879621885,0.06,208.58,208.55,4.79501318]
[1756879622787,0.06,208.58,208.53,4.7953186]
[1756879622989,0.72,208.58,208.53,11.82998109]
[1756879623545,0.06,208.58,208.57,7.03466249]
[1756879623808,0.06,208.63,208.57,7.74466249]
[1756879623991,7.75466249,208.63,208.58,4.79432352]
[1756879625391,0.72,208.63,208.58,4.79432352]
[1756879625792,7.75466249,208.63,208.58,4.79432352]
[1756879627084,0.72,208.63,208.58,5.50432352]
[1756879627699,10.97653694,208.63,208.58,4.79432352]
[1756879628531,10.91653694,208.6,208.55,4.79501318]
[1756879628696,0.66,208.59,208.55,4.79501318]
[1756879629103,10.25653694,208.57,208.54,4.79524311]
[1756879629302,10.25653694,208.55,208.51,4.79593304]
[1756879629502,42.58,208.58,208.48,10.25653694]
[1756879629503,10.91653694,208.54,208.48,10.25653694]
[1756879629799,10.25653694,208.53,208.47,10.96653694]
[1756879630614,10.25653694,208.53,208.48,4.79662317]
[1756879630818,10.25653694,208.53,208.48,5.50662317]
[1756879631018,43.16,208.52,208.44,15.05408059]
[1756879631200,10.25653694,208.51,208.45,10.96653694]
[1756879631811,43.16,208.52,208.46,10.25653694]
[1756879632013,10.25653694,208.51,208.45,10.96653694]
[1756879632416,10.25653694,208.48,208.44,4.79754365]
[1756879632625,10.25653694,208.48,208.42,4.79800403]
[1756879632819,0.71,208.47,208.42,4.79800403]
[1756879633016,10.25653694,208.43,208.37,10.96653694]
[1756879633204,10.25653694,208.44,208.37,10.96653694]
[1756879633405,42.46,208.45,208.4,10.25653694]
[1756879633619,42.46,208.45,208.4,0.71]
[1756879633620,52.71653694,208.45,208.4,0.71]
[1756879633808,52.71653694,208.45,208.4,0.41]
[1756879634120,0.71,208.44,208.38,10.25653694]
[1756879634322,10.96653694,208.44,208.38,10.25653694]
[1756879634498,42.38,208.45,208.4,15.05500143]
[1756879634703,42.38,208.49,208.4,4.79846449]
[1756879634916,52.63653694,208.49,208.43,10.25653694]
[1756879635120,53.34653694,208.49,208.43,10.25653694]
[1756879635825,53.34653694,208.49,208.44,4.79754365]
[1756879636033,0.71,208.48,208.44,4.79754365]
[1756879636524,10.96653694,208.51,208.45,10.25653694]
[1756879636736,53.28653694,208.51,208.45,10.25653694]
[1756879637109,43.03,208.51,208.44,27.04793973]
[1756879637310,10.25653694,208.5,208.44,27.04793973]
[1756879637509,10.25653694,208.5,208.44,16.79140279]
[1756879637808,10.25653694,208.5,208.44,27.04793973]
[1756879638010,0.71,208.49,208.44,16.79140279]
[1756879638218,0.71,208.48,208.44,27.04793973]
[1756879638428,53.20653694,208.5,208.44,27.04793973]
[1756879638728,42.93,208.5,208.45,10.25653694]
[1756879639108,0.71,208.5,208.45,10.25653694]
[1756879639308,42.91,208.5,208.45,10.25653694]
[1756879639714,53.16653694,208.5,208.45,10.25653694]
[1756879639910,10.96653694,208.5,208.46,4.79708337]
[1756879640124,42.14,208.51,208.46,27.04632874]